fUSD/lending_fUSD_20240329
["ID","MTS","AMOUNT","RATE_DAILY","PERIOD"]
[320923456,1711710671158,-500.0,0.0005178,120]
[320923457,1711710671168,-500.0,0.0005178,120]
[320923458,1711710671176,-500.0,0.0005178,120]
[320923459,1711710671185,-1175.48,0.0005178,120]
[320923460,1711710671195,-500.0,0.0005178,120]
[320923461,1711710671204,-560.38,0.0005178,120]
[320923462,1711710671213,-500.0,0.0005178,120]
[320923463,1711710671222,-500.0,0.0005178,120]
[320923464,1711710671235,-500.0,0.0005178,120]
[320923465,1711710671244,-161.23691359,0.0005178,120]
[320923466,1711710671253,-1651.49,0.0005178,120]
[320923467,1711710671262,-500.0,0.0005178,120]
[320923468,1711710671272,-693.8,0.0005178,120]
[320923469,1711710671281,-846.89,0.0005178,120]
[320923470,1711710671291,-1205.27,0.0005178,120]
[320923471,1711710671300,-1377.59,0.0005178,120]
[320923472,1711710671309,-772.01,0.0005178,120]
[320923473,1711710671318,-1726.42,0.0005178,120]
[320923474,1711710671327,-834.28,0.0005178,120]
[320923475,1711710671336,-7657.04,0.0005178,120]
[320923476,1711710671345,-1359.1,0.0005178,120]
[320923477,1711710671355,-500.0,0.0005178,120]
[320923478,1711710671364,-500.0,0.0005178,120]
[320923479,1711710671374,-610.35,0.0005178,120]
[320923480,1711710671385,-933.59,0.0005178,120]
[320923481,1711710671394,-500.0,0.0005178,120]
[320923482,1711710671403,-815.82,0.0005178,120]
[320923483,1711710671413,-16927.52,0.0005178,120]
[320923484,1711710671422,-1680.26,0.0005178,120]
[320923485,1711710671431,-668.43,0.0005178,120]
[320923486,1711710671441,-2121.86,0.0005178,120]
[320923487,1711710671450,-982.25,0.0005178,120]
[320923488,1711710671460,-360.39068805,0.0005178,120]
[320923489,1711710671469,-1194.36,0.0005178,120]
[320923490,1711710671481,-1114.26,0.0005178,120]
[320923491,1711710671490,-520.39,0.0005178,120]
[320923492,1711710671499,-500.0,0.0005178,120]
[320923493,1711710671508,-500.0,0.0005178,120]
[320923494,1711710671518,-721.54,0.0005178,120]
[320923495,1711710671527,-1074.5,0.0005178,120]
[320923496,1711710671537,-601.81846718,0.0005178,120]
[320923497,1711710671546,-921.73,0.0005178,120]
[320923498,1711710671555,-1291.61,0.0005178,120]
[320923499,1711710671565,-1239.65,0.0005178,120]
[320923500,1711710671574,-500.0,0.0005178,120]
[320923501,1711710671583,-500.0,0.0005178,120]
[320923502,1711710671593,-686.91,0.0005178,120]
[320923503,1711710671602,-500.0,0.0005178,120]
[320923504,1711710671611,-6084.84,0.0005178,120]
[320923505,1711710671620,-3042.47,0.0005178,120]
[320923506,1711710671630,-1183.44,0.0005178,120]
[320923507,1711710671642,-651.34,0.0005178,120]
[320923508,1711710671652,-3410.37,0.0005178,120]
[320923509,1711710671662,-810.42,0.0005178,120]
[320923510,1711710671671,-1684.01,0.0005178,120]
[320923511,1711710671681,-799.78,0.0005178,120]
[320923512,1711710671690,-500.0,0.0005178,120]
[320923513,1711710671700,-2073.54,0.0005178,120]
[320923514,1711710671709,-567.77,0.0005178,120]
[320923515,1711710671719,-500.0,0.0005178,120]
[320923516,1711710671728,-947.75,0.0005178,120]
[320923517,1711710671739,-500.0,0.0005178,120]
[320923518,1711710671748,-1168.41,0.0005178,120]
[320923519,1711710671757,-739.84,0.0005178,120]
[320923520,1711710671766,-611.16,0.0005178,120]
[320923521,1711710671775,-500.0,0.0005178,120]
[320923522,1711710671784,-500.0,0.0005178,120]
[320923523,1711710671794,-1516.89,0.0005178,120]
[320923524,1711710671803,-565.45,0.0005178,120]
[320923525,1711710671813,-915.09,0.0005178,120]
[320923526,1711710671822,-500.0,0.0005178,120]
[320923527,1711710671831,-1327.55,0.0005178,120]
[320923528,1711710671841,-2105.94,0.0005178,120]
[320923529,1711710671850,-555.47,0.0005178,120]
[320923530,1711710671860,-1465.08,0.0005178,120]
[320923531,1711710671869,-1119.02,0.0005178,120]
[320923532,1711710671878,-2801.15,0.0005178,120]
[320923533,1711710671888,-1590.52,0.0005178,120]
[320923534,1711710671897,-1260.15,0.0005178,120]
[320923535,1711710671906,-897.12,0.0005178,120]
[320923536,1711710671916,-500.0,0.0005178,120]
[320923537,1711710671925,-987.13,0.0005178,120]
[320923538,1711710671935,-821.77,0.0005178,120]
[320923539,1711710671944,-1164.64,0.0005178,120]
[320923540,1711710671953,-1208.36,0.0005178,120]
[320923541,1711710671962,-2773.26,0.0005178,120]
[320923542,1711710671972,-11808.29,0.0005178,120]
[320923543,1711710671983,-579.48,0.0005178,120]
[320923544,1711710671992,-500.0,0.0005178,120]
[320923545,1711710672001,-857.42,0.0005178,120]
[320923546,1711710672011,-1397.67,0.0005178,72]
[320923547,1711710672020,-3628.52,0.0005178,120]
[320923548,1711710672030,-500.0,0.0005178,120]
[320923549,1711710672040,-909.86,0.0005178,120]
[320923550,1711710672049,-1522.9,0.0005178,120]
[320923551,1711710672059,-500.0,0.0005178,120]
[320923552,1711710672068,-804.38,0.0005178,120]
[320923553,1711710672077,-1620.87,0.0005178,120]
[320923554,1711710672087,-2799.29,0.0005178,120]
[320923555,1711710672097,-885.3,0.0005178,120]
[320923556,1711710672107,-904.72,0.0005178,120]
[320923557,1711710672116,-602.06,0.0005178,120]
[320923558,1711710672126,-960.55,0.0005178,120]
[320923559,1711710672135,-1273.78,0.0005178,120]
[320923560,1711710672145,-1913.4,0.0005178,120]
[320923561,1711710672154,-1248.65,0.0005178,21]
[320923562,1711710672164,-742.11,0.0005178,120]
[320923563,1711710672173,-968.95,0.0005178,120]
[320923564,1711710672183,-1163.45,0.0005178,120]
[320923565,1711710672193,-691.01,0.0005178,120]
[320923566,1711710672202,-1903.05,0.0005178,120]
[320923567,1711710672212,-705.61,0.0005178,120]
[320923568,1711710672221,-3676.12,0.0005178,120]
[320923569,1711710672232,-732.51,0.0005178,120]
[320923570,1711710672242,-3161.14,0.0005178,120]
[320923571,1711710672251,-500.0,0.0005178,120]
[320923572,1711710672261,-516.41,0.0005178,120]
[320923573,1711710672270,-1058.48,0.0005178,120]
[320923574,1711710672280,-963.86,0.0005178,120]
[320923575,1711710672290,-789.66,0.0005178,120]
[320923576,1711710672299,-526.41,0.0005178,120]
[320923577,1711710672309,-500.0,0.0005178,120]
[320923578,1711710672319,-1501.36,0.0005178,120]
[320923579,1711710672328,-621.96,0.0005178,120]
[320923580,1711710672338,-500.0,0.0005178,120]
[320923581,1711710672347,-1147.13,0.0005178,120]
[320923582,1711710672357,-753.8,0.0005178,120]
[320923583,1711710672367,-500.0,0.0005178,120]
[320923584,1711710672377,-500.0,0.0005178,120]
[320923585,1711710672386,-2333.25,0.0005178,120]
[320923586,1711710672396,-1023.54,0.0005178,120]
[320923587,1711710672406,-500.0,0.0005178,120]
[320923588,1711710672416,-894.67,0.0005178,120]
[320923589,1711710672425,-1616.3,0.0005178,120]
[320923590,1711710672435,-718.12,0.0005178,120]
[320923591,1711710672445,-1247.71,0.0005178,120]
[320923592,1711710672455,-500.0,0.0005178,120]
[320923593,1711710672465,-500.0,0.0005178,120]
[320923594,1711710672474,-1571.67,0.0005178,120]
[320923595,1711710672485,-2521.44,0.0005178,120]
[320923596,1711710672495,-517.07,0.0005178,120]
[320923597,1711710672505,-3522.2,0.0005178,120]
[320923598,1711710672514,-500.0,0.0005178,120]
[320923599,1711710672524,-500.0,0.0005178,120]
[320923600,1711710672534,-983.13,0.0005178,120]
[320923601,1711710672543,-169.77,0.00051784,2]
[320923602,1711710672553,-5300.0,0.0005179,31]
[320923603,1711710672562,-159.87362637,0.00051793,60]
[320923604,1711710672572,-612.85035996,0.00051797,2]
[320923605,1711710672581,-1870.92266433,0.00051799,15]
[320923606,1711710672590,-340236.80219061,0.000518,2]
[320923607,1711710672600,-149865.12047128,0.000518,2]
[320923608,1711710672609,-541069.75935611,0.000518,2]
[320923609,1711710672618,-162802.69331249,0.000518,2]
[320923610,1711710672628,-340217.92617145,0.000518,2]
[320923611,1711710672638,-511782.78284378,0.000518,2]
[320923612,1711710672648,-1000198.18951942,0.000518,2]
[320923613,1711710672662,-159.08,0.000518,7]
[320923614,1711710672671,-151.01,0.000518,7]
[320923615,1711710672681,-291.5,0.000518,7]
[320923616,1711710672692,-17598.0,0.000518,120]
[320923617,1711710672701,-500.0,0.000518,22]
[320923618,1711710672711,-500.0,0.000518,22]
[320923619,1711710672721,-500.0,0.000518,22]
[320923620,1711710672732,-500.0,0.000518,22]
[320923621,1711710672741,-500.0,0.000518,22]
[320923622,1711710672751,-500.0,0.000518,32]
[320923623,1711710672760,-479.0,0.000518,40]
[320923624,1711710672769,-243.74423116,0.000518,30]
[320923625,1711710672778,-473.0,0.000518,30]
[320923626,1711710672788,-154.24183696,0.000518,30]
[320923627,1711710672797,-172.48583187,0.000518,30]
[320923628,1711710672807,-159.85419668,0.000518,30]
[320923629,1711710672817,-300.0,0.000518,13]
[320923630,1711710672827,-500.0,0.000518,18]
[320923631,1711710672837,-167.0,0.000518,40]
[320923632,1711710672846,-500.0,0.00051806,14]
[320923633,1711710672856,-151.0,0.00051827,2]
[320923634,1711710672865,-156.61,0.0005188,15]
[320923635,1711710672875,-500.0,0.00051886,90]
[320923636,1711710672885,-150.5,0.0005189,15]
[320923637,1711710672894,-537.0,0.000519,40]
[320923638,1711710672904,-500.0,0.000519,18]
[320923639,1711710672914,-500.0,0.00051955,14]
[320923640,1711710672923,-1401.16729361,0.00051981,10]
[320923641,1711710672934,-200.0,0.00051987,2]
[320923642,1711710672944,-153.21258999,0.00051995,2]
[320923643,1711710672953,-538694.44174762,0.00051998,7]
[320923644,1711710672963,-100000.0,0.00052,42]
[320923645,1711710672974,-11924.68007821,0.00052,60]
[320923646,1711710672985,-450.0,0.00052,120]
[320923647,1711710672995,-364831.64066879,0.00052,120]
[320923648,1711710673217,-362.59589998,0.00052,120]
[320923649,1711710673231,-507.25619674,0.00052,120]
[320923650,1711710673345,-7.55857251,0.00049315,120]
[320923655,1711711387493,-150.0,0.00026291,2]
[320923656,1711711387517,-294.64432269,0.00026292,2]
[320923657,1711711387542,-2201.31933089,0.00026292,2]
[320923658,1711711387566,-1898.28964093,0.00026292,2]
[320923661,1711711508877,42405.22868736,0.00026292,2]
[320923662,1711711526774,29418.93436546,0.00026292,2]
[320923663,1711711527941,8001.13426834,0.00026292,2]
[320923664,1711711558933,550.10279735,0.0002,2]
[320923665,1711711565161,-10805.96689638,0.00031994,4]
[320923666,1711711565188,-6666.80213559,0.00031995,4]
[320923667,1711711565217,-155.0,0.00031995,4]
[320923668,1711711565242,-6372.23096803,0.00031996,4]
[320923669,1711711585316,-8450.87359354,0.00031996,4]
[320923670,1711711585340,-1486.28779271,0.00031997,4]
[320923671,1711711585363,-982.50512629,0.00031999,4]
[320923672,1711711585387,-343.0,0.00032,3]
[320923673,1711711588052,318.36271778,0.00026292,2]
[320923674,1711711588145,1463.99840658,0.00026292,2]
[320923675,1711711600213,406.35993677,0.00025503,2]
[320923676,1711711641572,6461.60061752,0.00026292,2]
[320923712,1711711832158,-250.0,0.00033,3]
[320923713,1711711832168,-190.04,0.00034495,2]
[320923714,1711711832177,-155.0,0.00041687,4]
[320923715,1711711832187,-3006.9218,0.00041688,2]
[320923716,1711711832197,-2221.0338342,0.00041787,4]
[320923717,1711711832209,-345.00864011,0.00041787,4]
[320923718,1711711832221,-1778.19770737,0.00041787,4]
[320923719,1711711832232,-387.79,0.00041788,30]
[320923720,1711711832241,-499.99,0.00041788,2]
[320923721,1711711832251,-150.0,0.00044381,5]
[320923722,1711711832261,-492.94429668,0.00044382,4]
[320923723,1711711832271,-520.20733669,0.00045,30]
[320923724,1711711832285,-713.45,0.00045,30]
[320923725,1711711832310,-261.15578167,0.00045,30]
[320923726,1711711833691,-361.13211241,0.00045,30]
[320923727,1711711833701,-436.32,0.00045003,2]
[320923728,1711711833711,-1213.02109574,0.00045003,2]
[320923743,1711711833999,-440.47130196,0.00045003,2]
[320923744,1711711834012,-660.31140442,0.00045003,2]
[320923745,1711711834033,-7686.18619788,0.00045003,2]
[320923746,1711711834044,-439.88879883,0.00045101,30]
[320923747,1711711834054,-741.31,0.00045101,2]
[320923748,1711711834064,-155.0,0.00045121,4]
[320923749,1711711834074,-500.0,0.00046595,2]
[320923750,1711711834083,-200.0,0.00046606,2]
[320923751,1711711834093,-150.0,0.00046629,2]
[320923752,1711711834103,-1473.11,0.00046751,120]
[320923753,1711711834112,-500.0,0.00046767,2]
[320923754,1711711834122,-414.32,0.00046777,2]
[320923755,1711711834131,-250.0,0.00046825,120]
[320923756,1711711834142,-786.71,0.00046844,2]
[320923757,1711711834151,-202.6,0.00046867,2]
[320923758,1711711834161,-21066.79484268,0.00046917,2]
[320923759,1711711834171,-23900.0,0.00046927,2]
[320923760,1711711834180,-1614.14,0.00046954,2]
[320923761,1711711834189,-250.0,0.00046982,112]
[320923762,1711711834199,-160.0,0.00046996,2]
[320923763,1711711834208,-1441.61,0.0004703,2]
[320923764,1711711834218,-200.0,0.0004708,2]
[320923765,1711711834227,-162.09,0.00047143,15]
[320923766,1711711834237,-436.32,0.00047267,2]
[320923767,1711711834246,-401.46,0.00047345,2]
[320923768,1711711834256,-167.9,0.0004763,2]
[320923769,1711711834265,-1833.31,0.00048134,120]
[320923770,1711711834274,-840.0,0.00048223,2]
[320923771,1711711834284,-223.87,0.00048449,2]
[320923772,1711711834293,-210.0,0.00048819,5]
[320923773,1711711834303,-7000.03811811,0.00049,120]
[320923774,1711711834312,-2432.8242,0.00049116,2]
[320923775,1711711834322,-1368.30627953,0.00049131,4]
[320923776,1711711834331,-7901.93352949,0.00049215,2]
[320923783,1711711838092,-650.42734,0.00049215,2]
[320923784,1711711838104,-2323.24045427,0.00049215,2]
[320923785,1711711838113,-1601.2067,0.00049215,2]
[320923786,1711711838123,-321.0007,0.00049215,2]
[320923787,1711711838133,-4395.53692185,0.00049217,2]
[320923788,1711711838142,-4395.53692185,0.00049235,2]
[320923789,1711711838153,-4395.53692185,0.00049236,2]
[320923790,1711711838162,-4395.53692185,0.0004925,2]
[320923791,1711711838171,-4556.89776575,0.00049269,4]
[320923792,1711711838181,-249.97,0.00049305,2]
[320923793,1711711838190,-1880.10782402,0.00049313,4]
[320923794,1711711838199,-780.88336166,0.00049313,4]
[320923795,1711711838209,-2167.17725752,0.00049313,4]
[320923796,1711711838218,-500.0,0.00049313,2]
[320923797,1711711838229,-214.80646049,0.00049313,4]
[320923798,1711711838243,-3252.89472975,0.00049313,4]
[320923799,1711711838252,-155.41216958,0.00049313,4]
[320923800,1711711838262,-281.13573391,0.00049313,4]
[320923801,1711711838272,-207.11267069,0.00049313,4]
[320923802,1711711838281,-5580.95283091,0.00049314,4]
[320923803,1711711838291,-376.95798032,0.00049314,4]
[320923804,1711711838301,-173.01265132,0.00049314,4]
[320923805,1711711838310,-477.04765737,0.00049315,120]
[320923806,1711711838320,-535.5,0.00049315,120]
[320923807,1711711838330,-500.0,0.00049315,120]
[320923808,1711711838340,-500.0,0.00049315,120]
[320923809,1711711838349,-500.0,0.00049315,120]
[320923810,1711711838359,-500.0,0.00049315,120]
[320923811,1711711838369,-500.0,0.00049315,120]
[320923812,1711711838378,-500.0,0.00049315,120]
[320923813,1711711838387,-500.0,0.00049315,120]
[320923814,1711711838397,-500.0,0.00049315,120]
[320923815,1711711838406,-500.0,0.00049315,120]
[320923816,1711711838416,-500.0,0.00049315,120]
[320923817,1711711838425,-500.0,0.00049315,120]
[320923818,1711711838435,-500.0,0.00049315,120]
[320923819,1711711838444,-500.0,0.00049315,120]
[320923820,1711711838454,-500.0,0.00049315,120]
[320923821,1711711838463,-500.0,0.00049315,120]
[320923822,1711711838473,-500.0,0.00049315,120]
[320923823,1711711838484,-500.0,0.00049315,120]
[320923824,1711711838493,-500.0,0.00049315,120]
[320923825,1711711838503,-500.0,0.00049315,120]
[320923826,1711711838512,-500.0,0.00049315,120]
[320923827,1711711838522,-500.0,0.00049315,120]
[320923828,1711711838531,-500.0,0.00049315,120]
[320923829,1711711838540,-532.09,0.00049315,120]
[320923830,1711711838550,-500.0,0.00049315,120]
[320923831,1711711838559,-500.0,0.00049315,120]
[320923832,1711711838569,-500.0,0.00049315,120]
[320923833,1711711838578,-500.0,0.00049315,120]
[320923834,1711711838587,-500.0,0.00049315,120]
[320923835,1711711838597,-500.0,0.00049315,120]
[320923836,1711711838606,-500.0,0.00049315,120]
[320923837,1711711838616,-500.0,0.00049315,120]
[320923838,1711711838625,-500.0,0.00049315,120]
[320923839,1711711838634,-500.0,0.00049315,120]
[320923840,1711711838644,-500.0,0.00049315,120]
[320923841,1711711838653,-500.0,0.00049315,120]
[320923843,1711711838662,-500.0,0.00049315,120]
[320923845,1711711838672,-500.0,0.00049315,120]
[320923847,1711711838681,-500.0,0.00049315,120]
[320923849,1711711838690,-500.0,0.00049315,120]
[320923851,1711711838699,-500.0,0.00049315,30]
[320923853,1711711838708,-500.0,0.00049315,120]
[320923855,1711711838717,-500.0,0.00049315,120]
[320923857,1711711838726,-500.0,0.00049315,120]
[320923859,1711711838737,-500.0,0.00049315,120]
[320923861,1711711838746,-625.71378792,0.00049315,120]
[320923863,1711711838755,-500.0,0.00049315,120]
[320923865,1711711838765,-500.0,0.00049315,120]
[320923867,1711711838775,-500.0,0.00049315,120]
[320923869,1711711838784,-500.0,0.00049315,120]
[320923871,1711711838793,-500.0,0.00049315,120]
[320923873,1711711838802,-500.0,0.00049315,120]
[320923874,1711711838811,-620.46563312,0.00049315,120]
[320923876,1711711838821,-500.0,0.00049315,120]
[320923877,1711711838830,-178.83092809,0.00049315,120]
[320923879,1711711838839,-21.28051874,0.00049315,120]
[320923880,1711711838852,-341.99163343,0.00049315,120]
[320923881,1711711838883,-136.72784783,0.00049315,120]
[320923882,1711711838893,-500.0,0.00049315,120]
[320923883,1711711838902,-500.0,0.00049315,120]
[320923884,1711711838911,-97.2195727,0.00049315,120]
[320923885,1711711838935,-402.7804273,0.00049315,120]
[320923886,1711711838945,-500.0,0.00049315,120]
[320923887,1711711838958,-150.0,0.00049315,120]
[320923888,1711711838967,-500.0,0.00049315,120]
[320923889,1711711838976,-500.0,0.00049315,120]
[320923890,1711711838986,-500.0,0.00049315,120]
[320923891,1711711838996,-500.0,0.00049315,120]
[320923892,1711711839005,-500.0,0.00049315,120]
[320923893,1711711839052,-500.0,0.00049315,120]
[320923894,1711711839061,-500.0,0.00049315,120]
[320923895,1711711839071,-500.0,0.00049315,120]
[320923896,1711711839080,-500.0,0.00049315,120]
[320923897,1711711839089,-500.0,0.00049315,120]
[320923898,1711711839098,-500.0,0.00049315,120]
[320923899,1711711839107,-203.46457774,0.00049315,120]
[320923900,1711711839116,-500.0,0.00049315,120]
[320923901,1711711839125,-500.0,0.00049315,120]
[320923902,1711711839135,-500.0,0.00049315,120]
[320923903,1711711839144,-500.0,0.00049315,120]
[320923904,1711711839153,-500.0,0.00049315,120]
[320923905,1711711839162,-500.0,0.00049315,120]
[320923906,1711711839172,-500.0,0.00049315,120]
[320923907,1711711839181,-500.0,0.00049315,120]
[320923908,1711711839190,-905.47,0.00049315,120]
[320923909,1711711839199,-500.0,0.00049315,120]
[320923910,1711711839209,-500.0,0.00049315,120]
[320923911,1711711839219,-649.99,0.00049315,120]
[320923912,1711711839229,-500.0,0.00049315,120]
[320923913,1711711839240,-1989.38,0.00049315,120]
[320923914,1711711839249,-9874.39,0.00049315,120]
[320923915,1711711839258,-500.0,0.00049315,120]
[320923916,1711711839268,-753.44,0.00049315,120]
[320923917,1711711839278,-572.98,0.00049315,120]
[320923918,1711711839288,-1209.56,0.00049315,120]
[320923919,1711711839297,-500.0,0.00049315,120]
[320923920,1711711839306,-1793.79,0.00049315,120]
[320923921,1711711839316,-500.0,0.00049315,120]
[320923922,1711711839325,-552.86,0.00049315,120]
[320923923,1711711839334,-3549.49,0.00049315,120]
[320923924,1711711839343,-884.86,0.00049315,120]
[320923925,1711711839352,-500.0,0.00049315,120]
[320923926,1711711839361,-1043.75,0.00049315,120]
[320923927,1711711839370,-500.0,0.00049315,120]
[320923928,1711711839380,-1634.0,0.00049315,120]
[320923929,1711711839389,-500.0,0.00049315,120]
[320923930,1711711839398,-500.0,0.00049315,120]
[320923931,1711711839407,-500.0,0.00049315,120]
[320923932,1711711839416,-500.0,0.00049315,120]
[320923933,1711711839425,-500.0,0.00049315,120]
[320923934,1711711839435,-500.0,0.00049315,120]
[320923935,1711711839444,-500.0,0.00049315,120]
[320923936,1711711839454,-1228.46,0.00049315,120]
[320923937,1711711839463,-6888.17,0.00049315,120]
[320923938,1711711839473,-500.0,0.00049315,120]
[320923939,1711711839482,-652.76,0.00049315,120]
[320923940,1711711839492,-500.0,0.00049315,120]
[320923941,1711711839501,-500.0,0.00049315,120]
[320923942,1711711839511,-681.58,0.00049315,120]
[320923943,1711711839520,-735.09,0.00049315,120]
[320923944,1711711839529,-523.32,0.00049315,120]
[320923945,1711711839538,-500.0,0.00049315,120]
[320923946,1711711839547,-500.0,0.00049315,120]
[320923947,1711711839557,-575.83,0.00049315,120]
[320923948,1711711839567,-500.0,0.00049315,120]
[320923949,1711711839576,-500.0,0.00049315,120]
[320923950,1711711839586,-854.63,0.00049315,120]
[320923951,1711711839595,-533.8,0.00049315,120]
[320923952,1711711839605,-1617.73,0.00049315,120]
[320923953,1711711839614,-500.0,0.00049315,120]
[320923954,1711711839624,-728.38,0.00049315,21]
[320923955,1711711839633,-500.16,0.00049315,120]
[320923956,1711711839644,-530.75,0.00049315,120]
[320923957,1711711839653,-500.0,0.00049315,120]
[320923958,1711711839663,-500.0,0.00049315,120]
[320923959,1711711839673,-927.8,0.00049315,120]
[320923960,1711711839683,-1632.92,0.00049315,120]
[320923961,1711711839693,-500.0,0.00049315,120]
[320923962,1711711839704,-500.0,0.00049315,120]
[320923963,1711711839716,-500.0,0.00049315,120]
[320923964,1711711839726,-516.43,0.00049315,120]
[320923965,1711711839738,-559.15480638,0.00049315,120]
[320923966,1711711839749,-500.0,0.00049315,120]
[320923967,1711711839759,-560.32,0.00049315,120]
[320923968,1711711839769,-859.94,0.00049315,120]
[320923969,1711711839779,-500.0,0.00049315,120]
[320923970,1711711839789,-500.0,0.00049315,120]
[320923971,1711711839798,-565.22,0.00049315,120]
[320923972,1711711839807,-500.0,0.00049315,120]
[320923973,1711711839816,-1226.99,0.00049315,60]
[320923974,1711711839826,-704.88,0.00049315,120]
[320923976,1711711839835,-500.0,0.00049315,120]
[320923977,1711711839845,-500.0,0.00049315,120]
[320923979,1711711839854,-621.74055199,0.00049315,120]
[320923980,1711711839863,-1110.12,0.00049315,120]
[320923981,1711711839872,-2144.4,0.00049315,120]
[320923982,1711711839882,-500.0,0.00049315,120]
[320923983,1711711839891,-500.0,0.00049315,120]
[320923985,1711711839901,-2123.92,0.00049315,120]
[320923986,1711711839911,-1844.0,0.00049315,120]
[320923987,1711711839920,-500.0,0.00049315,120]
[320923988,1711711839929,-1116.15,0.00049315,120]
[320923989,1711711839939,-500.0,0.00049315,120]
[320923990,1711711839949,-340.85484526,0.00049315,120]
[320923991,1711711839959,-945.5,0.00049315,120]
[320923993,1711711839973,-607.8,0.00049315,120]
[320923994,1711711839982,-500.0,0.00049315,120]
[320923995,1711711839994,-500.0,0.00049315,120]
[320923996,1711711840004,-597.07,0.00049315,120]
[320923997,1711711840013,-743.04,0.00049315,120]
[320923998,1711711840023,-500.0,0.00049315,120]
[320923999,1711711840032,-963.37,0.00049315,120]
[320924000,1711711840042,-500.0,0.00049315,120]
[320924001,1711711840052,-707.13,0.00049315,120]
[320924002,1711711840062,-678.68,0.00049315,120]
[320924003,1711711840071,-500.0,0.00049315,120]
[320924005,1711711840081,-875.79,0.00049315,120]
[320924007,1711711840090,-500.0,0.00049315,120]
[320924009,1711711840100,-500.0,0.00049315,120]
[320924011,1711711840109,-2054.61,0.00049315,120]
[320924013,1711711840118,-500.0,0.00049315,120]
[320924015,1711711840128,-703.08,0.00049315,120]
[320924017,1711711840137,-500.0,0.00049315,120]
[320924019,1711711840146,-500.0,0.00049315,120]
[320924021,1711711840155,-573.49,0.00049315,120]
[320924022,1711711840165,-500.0,0.00049315,120]
[320924023,1711711840175,-1361.06,0.00049315,120]
[320924024,1711711840184,-1824.18,0.00049315,120]
[320924025,1711711840194,-500.0,0.00049315,120]
[320924026,1711711840204,-912.39,0.00049315,120]
[320924027,1711711840214,-500.0,0.00049315,120]
[320924028,1711711840224,-1007.08,0.00049315,120]
[320924029,1711711840233,-500.0,0.00049315,120]
[320924030,1711711840244,-606.53,0.00049315,120]
[320924031,1711711840253,-500.0,0.00049315,120]
[320924032,1711711840263,-500.0,0.00049315,120]
[320924033,1711711840272,-636.49603942,0.00049315,120]
[320924034,1711711840283,-580.45,0.00049315,120]
[320924035,1711711840292,-500.0,0.00049315,120]
[320924036,1711711840301,-500.0,0.00049315,120]
[320924037,1711711840311,-1470.84,0.00049315,120]
[320924038,1711711840321,-500.0,0.00049315,120]
[320924039,1711711840331,-271.26669273,0.00049315,120]
[320924040,1711711840341,-720.8062774,0.00049315,4]
[320924041,1711711840350,-500.0,0.00049315,120]
[320924042,1711711840359,-500.0,0.00049315,120]
[320924043,1711711840369,-500.0,0.00049315,120]
[320924044,1711711840378,-546.93,0.00049315,120]
[320924045,1711711840387,-224.93787781,0.00049315,120]
[320924046,1711711840396,-2260.0,0.00049315,120]
[320924047,1711711840406,-980.15,0.00049315,120]